[Event "NJSK 2026 Meisjes A"]
[Site "Helmond, Netherlands"]
[Date "2026.04.28"]
[Round "4.2"]
[White "Gergin, Isafara"]
[Black "Hagen, Carlijn"]
[Result "0-1"]
[TimeControl "90min/40moves + 30min + 30sec/move"]
[WhiteTitle "-"]
[BlackTitle "-"]
[WhiteFideId "1082167"]
[BlackFideId "1091190"]
[WhiteElo "1915"]
[BlackElo "1861"]

1. e4 {[%clk 01:30:53]} {[%emt 00:00:07]} e5 {[%clk 01:30:51]} {[%emt
00:00:09]} 2. Nf3 {[%clk 01:31:18]} {[%emt 00:00:05]} Nc6 {[%clk 01:31:14]}
{[%emt 00:00:06]} 3. Bc4 {[%clk 01:31:27]} {[%emt 00:00:22]} Bc5 {[%clk
01:31:35]} {[%emt 00:00:09]} 4. d3 {[%clk 01:31:46]} {[%emt 00:00:11]} Nf6
{[%clk 01:30:58]} {[%emt 00:01:07]} 5. O-O {[%clk 01:31:07]} {[%emt 00:01:08]}
O-O {[%clk 01:31:05]} {[%emt 00:00:23]} 6. Re1 {[%clk 01:31:29]} {[%emt
00:00:08]} d6 {[%clk 01:30:52]} {[%emt 00:00:43]} 7. c3 {[%clk 01:31:50]}
{[%emt 00:00:09]} Bb6 {[%clk 01:30:07]} {[%emt 00:01:16]} 8. h3 {[%clk
01:31:41]} {[%emt 00:00:39]} Ne7 {[%clk 01:24:36]} {[%emt 00:06:01]} 9. d4
{[%clk 01:30:14]} {[%emt 00:01:57]} exd4 {[%clk 01:24:49]} {[%emt 00:00:16]} 10.
cxd4 {[%clk 01:30:38]} {[%emt 00:00:06]} d5 {[%clk 01:23:59]} {[%emt 00:01:21]}
11. exd5 {[%clk 01:30:44]} {[%emt 00:00:24]} Nexd5 {[%clk 01:23:53]} {[%emt
00:00:36]} 12. Bg5 {[%clk 01:30:33]} {[%emt 00:00:40]} Qd6 {[%clk 01:17:18]}
{[%emt 00:07:05]} 13. Nc3 {[%clk 01:30:05]} {[%emt 00:00:58]} c6 {[%clk
01:15:18]} {[%emt 00:02:31]} 14. Qb3 {[%clk 01:28:59]} {[%emt 00:01:36]} Nxc3
{[%clk 01:02:46]} {[%emt 00:13:02]} 15. bxc3 {[%clk 01:27:35]} {[%emt
00:01:54]} Nd5 {[%clk 00:57:16]} {[%emt 00:05:59]} 16. Bh4 {[%clk 01:18:40]}
{[%emt 00:09:25]} Be6 {[%clk 00:48:48]} {[%emt 00:08:59]} 17. a4 {[%clk
01:01:35]} {[%emt 00:17:35]} Bd8 {[%clk 00:37:14]} {[%emt 00:12:03]} 18. Bg3
{[%clk 00:58:44]} {[%emt 00:03:21]} Qd7 {[%clk 00:37:24]} {[%emt 00:00:20]} 19.
Ne5 {[%clk 00:56:06]} {[%emt 00:03:08]} Qc8 {[%clk 00:37:21]} {[%emt 00:00:32]}
20. Rab1 {[%clk 00:43:17]} {[%emt 00:13:20]} Bb6 {[%clk 00:32:54]} {[%emt
00:04:57]} 21. Nf3 {[%clk 00:34:46]} {[%emt 00:09:03]} Qd8 {[%clk 00:28:38]}
{[%emt 00:04:45]} 22. Qc2 {[%clk 00:25:14]} {[%emt 00:10:03]} h6 {[%clk
00:24:19]} {[%emt 00:04:49]} 23. Bd3 {[%clk 00:24:05]} {[%emt 00:01:39]} Ba5
{[%clk 00:22:24]} {[%emt 00:02:26]} 24. Rb3 {[%clk 00:19:20]} {[%emt 00:05:15]}
Qc8 {[%clk 00:16:23]} {[%emt 00:06:31]} 25. Reb1 {[%clk 00:17:52]} {[%emt
00:01:58]} Nb6 {[%clk 00:15:40]} {[%emt 00:01:12]} 26. c4 {[%clk 00:14:47]}
{[%emt 00:03:34]} Rd8 {[%clk 00:13:53]} {[%emt 00:02:18]} 27. Qe2 {[%clk
00:14:05]} {[%emt 00:01:12]} Qd7 {[%clk 00:11:01]} {[%emt 00:03:21]} 28. Qe5
{[%clk 00:12:48]} {[%emt 00:01:47]} Bxc4 {[%clk 00:07:05]} {[%emt 00:04:27]} 29.
Qxa5 {[%clk 00:11:23]} {[%emt 00:01:56]} Bxb3 {[%clk 00:07:00]} {[%emt
00:00:35]} 30. Rxb3 {[%clk 00:11:44]} {[%emt 00:00:08]} Nd5 {[%clk 00:05:54]}
{[%emt 00:01:36]} 31. Qd2 {[%clk 00:10:58]} {[%emt 00:01:16]} Re8 {[%clk
00:04:51]} {[%emt 00:01:32]} 32. Rb1 {[%clk 00:09:15]} {[%emt 00:02:14]} a6
{[%clk 00:04:16]} {[%emt 00:01:05]} 33. a5 {[%clk 00:09:29]} {[%emt 00:00:17]}
Re7 {[%clk 00:03:16]} {[%emt 00:01:30]} 34. Qb2 {[%clk 00:07:27]} {[%emt
00:02:31]} Rae8 {[%clk 00:02:37]} {[%emt 00:01:09]} 35. Bh4 {[%clk 00:07:08]}
{[%emt 00:00:49]} g5 {[%clk 00:02:40]} {[%emt 00:00:27]} 36. Bg3 {[%clk
00:06:47]} {[%emt 00:00:51]} Nf4 {[%clk 00:01:23]} {[%emt 00:01:46]} 37. Bxf4
{[%clk 00:06:15]} {[%emt 00:01:03]} gxf4 {[%clk 00:01:47]} {[%emt 00:00:07]} 38.
Bc4 {[%clk 00:05:16]} {[%emt 00:01:28]} Qf5 {[%clk 00:01:08]} {[%emt 00:01:09]}
39. Ne5 {[%clk 00:04:37]} {[%emt 00:01:10]} Kh8 {[%clk 00:00:36]} {[%emt
00:01:01]} 40. Bd3 {[%clk 00:03:38]} {[%emt 00:01:29]} Qg5 {[%clk 00:00:45]}
{[%emt 00:00:21]} 41. Qb3 {[%clk 00:00:33]} {[%emt 00:03:35]} Rg8 {[%clk
00:29:19]} {[%emt 00:01:56]} 42. Be4 {[%clk 00:29:37]} {[%emt 00:01:26]} Qh5
{[%clk 00:28:33]} {[%emt 00:01:16]} 43. Re1 {[%clk 00:26:04]} {[%emt 00:04:03]}
f6 {[%clk 00:25:00]} {[%emt 00:04:03]} 44. Bf3 {[%clk 00:09:24]} {[%emt
00:17:10]} Qe8 {[%clk 00:22:25]} {[%emt 00:03:05]} 45. Nd3 {[%clk 00:03:54]}
{[%emt 00:06:00]} Rxe1+ {[%clk 00:22:43]} {[%emt 00:00:12]} 46. Nxe1 {[%clk
00:04:21]} {[%emt 00:00:03]} Qxe1+ {[%clk 00:23:05]} {[%emt 00:00:08]} 47. Kh2
{[%clk 00:04:48]} {[%emt 00:00:02]} Qxf2 {[%clk 00:21:04]} {[%emt 00:02:31]} 48.
Qxb7 {[%clk 00:04:33]} {[%emt 00:00:46]} Qg3+ {[%clk 00:21:16]} {[%emt
00:00:18]} 49. Kh1 {[%clk 00:04:56]} {[%emt 00:00:07]} Re8 {[%clk 00:21:22]}
{[%emt 00:00:23]} 50. Be4 {[%clk 00:04:35]} {[%emt 00:00:52]} Qe1+ {[%clk
00:21:13]} {[%emt 00:00:38]} 0-1

[Event "NJSK 2026 Meisjes A"]
[Site "Helmond, Netherlands"]
[Date "2026.04.28"]
[Round "4.3"]
[White "Damen, Josephine"]
[Black "Westerhof, Fleur"]
[Result "0-1"]
[TimeControl "90min/40moves + 30min + 30sec/move"]
[WhiteTitle "-"]
[BlackTitle "-"]
[WhiteFideId "1074369"]
[BlackFideId "1080369"]
[WhiteElo "1982"]
[BlackElo "1968"]

1. Nf3 {[%clk 01:30:56]} {[%emt 00:00:04]} Nf6 {[%clk 01:30:37]} {[%emt
00:00:21]} 2. g3 {[%clk 01:31:20]} {[%emt 00:00:07]} d5 {[%clk 01:30:42]}
{[%emt 00:00:25]} 3. Bg2 {[%clk 01:31:45]} {[%emt 00:00:04]} e6 {[%clk
01:31:00]} {[%emt 00:00:12]} 4. O-O {[%clk 01:32:07]} {[%emt 00:00:08]} Be7
{[%clk 01:31:11]} {[%emt 00:00:19]} 5. d3 {[%clk 01:32:31]} {[%emt 00:00:06]}
O-O {[%clk 01:30:56]} {[%emt 00:00:45]} 6. Nbd2 {[%clk 01:32:56]} {[%emt
00:00:05]} c5 {[%clk 01:30:20]} {[%emt 00:01:06]} 7. e4 {[%clk 01:33:21]}
{[%emt 00:00:05]} Nc6 {[%clk 01:25:51]} {[%emt 00:04:59]} 8. Re1 {[%clk
01:33:46]} {[%emt 00:00:06]} b6 {[%clk 01:22:10]} {[%emt 00:04:11]} 9. e5
{[%clk 01:32:22]} {[%emt 00:01:54]} Ne8 {[%clk 01:19:44]} {[%emt 00:02:55]} 10.
Nf1 {[%clk 01:27:05]} {[%emt 00:05:47]} Bb7 {[%clk 01:15:50]} {[%emt 00:04:24]}
11. h4 {[%clk 01:21:27]} {[%emt 00:06:08]} Nc7 {[%clk 01:12:06]} {[%emt
00:04:14]} 12. N1h2 {[%clk 01:18:20]} {[%emt 00:03:37]} Re8 {[%clk 01:08:06]}
{[%emt 00:04:30]} 13. Ng4 {[%clk 00:59:15]} {[%emt 00:19:35]} Bf8 {[%clk
01:05:03]} {[%emt 00:03:33]} 14. h5 {[%clk 00:52:29]} {[%emt 00:07:16]} h6
{[%clk 01:02:57]} {[%emt 00:02:36]} 15. Nh4 {[%clk 00:37:50]} {[%emt 00:15:10]}
Nd4 {[%clk 00:52:26]} {[%emt 00:11:01]} 16. Bf4 {[%clk 00:35:42]} {[%emt
00:02:38]} Be7 {[%clk 00:42:24]} {[%emt 00:10:31]} 17. Nf3 {[%clk 00:36:03]}
{[%emt 00:00:10]} Nf5 {[%clk 00:40:15]} {[%emt 00:02:37]} 18. c3 {[%clk
00:32:34]} {[%emt 00:04:00]} d4 {[%clk 00:34:23]} {[%emt 00:06:25]} 19. Nxd4
{[%clk 00:28:40]} {[%emt 00:04:24]} Bxg2 {[%clk 00:33:52]} {[%emt 00:01:00]} 20.
Nxf5 {[%clk 00:29:05]} {[%emt 00:00:06]} exf5 {[%clk 00:33:36]} {[%emt
00:00:46]} 21. Ne3 {[%clk 00:14:58]} {[%emt 00:14:37]} Bb7 {[%clk 00:30:44]}
{[%emt 00:03:22]} 22. Nxf5 {[%clk 00:15:20]} {[%emt 00:00:08]} Qd5 {[%clk
00:29:49]} {[%emt 00:01:24]} 23. Re4 {[%clk 00:15:43]} {[%emt 00:00:07]} Bg5
{[%clk 00:22:50]} {[%emt 00:07:30]} 24. Nd6 {[%clk 00:07:37]} {[%emt 00:08:35]}
Rf8 {[%clk 00:21:59]} {[%emt 00:01:21]} 25. c4 {[%clk 00:05:18]} {[%emt
00:02:50]} Qc6 {[%clk 00:21:37]} {[%emt 00:00:51]} 26. Bxg5 {[%clk 00:05:20]}
{[%emt 00:00:29]} hxg5 {[%clk 00:20:40]} {[%emt 00:01:26]} 27. h6 {[%clk
00:05:08]} {[%emt 00:00:42]} f5 {[%clk 00:16:31]} {[%emt 00:04:39]} 28. Qh5
{[%clk 00:02:19]} {[%emt 00:03:19]} Ne6 {[%clk 00:10:46]} {[%emt 00:06:15]} 29.
Qg6 {[%clk 00:02:02]} {[%emt 00:00:48]} Qd7 {[%clk 00:10:25]} {[%emt 00:00:51]}
30. Ree1 {[%clk 00:01:17]} {[%emt 00:01:15]} Bc6 {[%clk 00:08:44]} {[%emt
00:02:11]} 31. Nxf5 {[%clk 00:01:05]} {[%emt 00:00:42]} Rxf5 {[%clk 00:07:06]}
{[%emt 00:02:08]} 32. Qxf5 {[%clk 00:00:54]} {[%emt 00:00:41]} Rf8 {[%clk
00:07:05]} {[%emt 00:00:30]} 33. Qg6 {[%clk 00:00:49]} {[%emt 00:00:36]} Bb7
{[%clk 00:06:56]} {[%emt 00:00:39]} 34. hxg7 {[%clk 00:00:46]} {[%emt
00:00:33]} Rf7 {[%clk 00:05:17]} {[%emt 00:02:09]} 35. Qh5 {[%clk 00:00:37]}
{[%emt 00:00:39]} Rxg7 {[%clk 00:05:31]} {[%emt 00:00:16]} 36. Kf1 {[%clk
00:00:31]} {[%emt 00:00:36]} Qxd3+ {[%clk 00:04:02]} {[%emt 00:01:58]} 37. Qe2
{[%clk 00:00:58]} {[%emt 00:00:04]} Qh7 {[%clk 00:03:39]} {[%emt 00:00:52]} 38.
Qe3 {[%clk 00:00:33]} {[%emt 00:00:55]} Nd4 {[%clk 00:03:26]} {[%emt 00:00:44]}
39. f4 {[%clk 00:00:56]} {[%emt 00:00:06]} Qh3+ {[%clk 00:03:41]} {[%emt
00:00:15]} 0-1

[Event "NJSK 2026 Meisjes A"]
[Site "Helmond, Netherlands"]
[Date "2026.04.29"]
[Round "5.1"]
[White "Feng, Elysia"]
[Black "Yildirim, Azra"]
[Result "1-0"]
[TimeControl "90min/40moves + 30min + 30sec/move"]
[WhiteTitle "-"]
[BlackTitle "-"]
[WhiteFideId "1074334"]
[BlackFideId "1085670"]
[WhiteElo "1912"]
[BlackElo "1560"]

1. e4 {[%clk 01:30:57]} {[%emt 00:00:02]} e5 {[%clk 01:30:55]} {[%emt
00:00:06]} 2. Nf3 {[%clk 01:31:23]} {[%emt 00:00:04]} Nc6 {[%clk 01:31:18]}
{[%emt 00:00:07]} 3. Bb5 {[%clk 01:31:46]} {[%emt 00:00:07]} a6 {[%clk
01:31:20]} {[%emt 00:00:27]} 4. Ba4 {[%clk 01:32:09]} {[%emt 00:00:07]} Nf6
{[%clk 01:31:38]} {[%emt 00:00:12]} 5. O-O {[%clk 01:32:29]} {[%emt 00:00:10]}
b5 {[%clk 01:31:34]} {[%emt 00:00:36]} 6. Bb3 {[%clk 01:32:51]} {[%emt
00:00:07]} Bb7 {[%clk 01:30:34]} {[%emt 00:01:30]} 7. c3 {[%clk 01:30:46]}
{[%emt 00:02:35]} Be7 {[%clk 01:23:25]} {[%emt 00:07:39]} 8. Re1 {[%clk
01:30:44]} {[%emt 00:00:31]} d5 {[%clk 01:04:26]} {[%emt 00:19:30]} 9. exd5
{[%clk 01:27:35]} {[%emt 00:03:40]} Nxd5 {[%clk 01:04:41]} {[%emt 00:00:14]} 10.
Nxe5 {[%clk 01:26:51]} {[%emt 00:01:14]} Nxe5 {[%clk 01:04:48]} {[%emt
00:00:24]} 11. Rxe5 {[%clk 01:27:12]} {[%emt 00:00:08]} Qd6 {[%clk 01:04:36]}
{[%emt 00:00:42]} 12. d4 {[%clk 01:23:06]} {[%emt 00:04:35]} f6 {[%clk
00:59:25]} {[%emt 00:05:41]} 13. Re1 {[%clk 01:21:31]} {[%emt 00:02:06]} O-O-O
{[%clk 00:55:50]} {[%emt 00:04:05]} 14. Nd2 {[%clk 01:18:00]} {[%emt 00:04:00]}
f5 {[%clk 00:51:16]} {[%emt 00:05:04]} 15. a4 {[%clk 01:12:05]} {[%emt
00:06:26]} Qg6 {[%clk 00:30:53]} {[%emt 00:20:53]} 16. Nf3 {[%clk 01:05:54]}
{[%emt 00:06:41]} Rhe8 {[%clk 00:28:40]} {[%emt 00:02:43]} 17. Ne5 {[%clk
01:02:42]} {[%emt 00:03:43]} Qf6 {[%clk 00:26:09]} {[%emt 00:03:00]} 18. axb5
{[%clk 01:01:12]} {[%emt 00:02:02]} axb5 {[%clk 00:24:59]} {[%emt 00:01:39]} 19.
Qd3 {[%clk 00:56:47]} {[%emt 00:04:55]} Bd6 {[%clk 00:15:25]} {[%emt 00:10:04]}
20. f4 {[%clk 00:56:24]} {[%emt 00:00:53]} Qh4 {[%clk 00:13:11]} {[%emt
00:02:43]} 21. Qxf5+ {[%clk 00:52:59]} {[%emt 00:03:55]} Kb8 {[%clk 00:13:02]}
{[%emt 00:00:40]} 22. g3 {[%clk 00:51:21]} {[%emt 00:02:08]} Ne7 {[%clk
00:03:12]} {[%emt 00:10:20]} 23. Nd7+ {[%clk 00:49:24]} {[%emt 00:02:27]} Kc8
{[%clk 00:01:07]} {[%emt 00:02:35]} 24. Qe6 {[%clk 00:45:33]} {[%emt 00:04:21]}
Qh6 {[%clk 00:00:53]} {[%emt 00:00:44]} 25. Nf6+ {[%clk 00:44:33]} {[%emt
00:01:30]} Kb8 {[%clk 00:00:47]} {[%emt 00:00:35]} 26. Nxe8 {[%clk 00:44:51]}
{[%emt 00:00:12]} Qxe6 {[%clk 00:00:34]} {[%emt 00:00:43]} 27. Bxe6 {[%clk
00:45:02]} {[%emt 00:00:20]} Rxe8 {[%clk 00:00:55]} {[%emt 00:00:09]} 28. Bd7
{[%clk 00:45:27]} {[%emt 00:00:04]} Rf8 {[%clk 00:00:46]} {[%emt 00:00:40]} 29.
Bxb5 {[%clk 00:45:30]} {[%emt 00:00:28]} Ng6 {[%clk 00:00:34]} {[%emt
00:00:42]} 30. Bd2 {[%clk 00:45:37]} {[%emt 00:00:21]} c6 {[%clk 00:00:44]}
{[%emt 00:00:21]} 31. Bd3 {[%clk 00:45:23]} {[%emt 00:00:44]} Kc7 {[%clk
00:00:44]} {[%emt 00:00:30]} 32. c4 {[%clk 00:45:33]} {[%emt 00:00:19]} Rf6
{[%clk 00:00:43]} {[%emt 00:00:31]} 33. Bc3 {[%clk 00:45:44]} {[%emt 00:00:19]}
Nxf4 {[%clk 00:00:35]} {[%emt 00:00:38]} 34. gxf4 {[%clk 00:45:53]} {[%emt
00:00:21]} Rxf4 {[%clk 00:00:47]} {[%emt 00:00:18]} 35. c5 {[%clk 00:46:02]}
{[%emt 00:00:21]} Rh4 {[%clk 00:00:42]} {[%emt 00:00:35]} 1-0

[Event "NJSK 2026 Meisjes A"]
[Site "Helmond, Netherlands"]
[Date "2026.04.29"]
[Round "5.3"]
[White "Hagen, Carlijn"]
[Black "Damen, Josephine"]
[Result "1/2-1/2"]
[TimeControl "90min/40moves + 30min + 30sec/move"]
[WhiteTitle "-"]
[BlackTitle "-"]
[WhiteFideId "1091190"]
[BlackFideId "1074369"]
[WhiteElo "1861"]
[BlackElo "1982"]

1. e4 {[%clk 01:30:57]} {[%emt 00:00:03]} e5 {[%clk 01:30:57]} {[%emt
00:00:04]} 2. f4 {[%clk 01:31:16]} {[%emt 00:00:10]} exf4 {[%clk 01:31:21]}
{[%emt 00:00:05]} 3. Nf3 {[%clk 01:31:41]} {[%emt 00:00:06]} Ne7 {[%clk
01:31:46]} {[%emt 00:00:05]} 4. d4 {[%clk 01:31:55]} {[%emt 00:00:16]} d5
{[%clk 01:32:10]} {[%emt 00:00:06]} 5. Bd3 {[%clk 01:32:01]} {[%emt 00:00:23]}
dxe4 {[%clk 01:25:42]} {[%emt 00:06:59]} 6. Bxe4 {[%clk 01:32:16]} {[%emt
00:00:15]} Nd5 {[%clk 01:24:21]} {[%emt 00:01:51]} 7. O-O {[%clk 01:30:11]}
{[%emt 00:02:34]} Be7 {[%clk 01:23:14]} {[%emt 00:01:38]} 8. Qe2 {[%clk
01:22:40]} {[%emt 00:08:01]} c6 {[%clk 01:13:12]} {[%emt 00:10:32]} 9. c4
{[%clk 01:15:02]} {[%emt 00:08:08]} Nf6 {[%clk 01:12:28]} {[%emt 00:01:13]} 10.
Bc2 {[%clk 01:14:08]} {[%emt 00:01:24]} Bg4 {[%clk 01:08:25]} {[%emt 00:04:34]}
11. Qd3 {[%clk 01:12:27]} {[%emt 00:02:10]} Na6 {[%clk 01:01:53]} {[%emt
00:07:02]} 12. a3 {[%clk 01:09:09]} {[%emt 00:03:48]} Nc7 {[%clk 01:00:35]}
{[%emt 00:01:48]} 13. Bxf4 {[%clk 01:05:29]} {[%emt 00:04:09]} Ne6 {[%clk
01:00:59]} {[%emt 00:00:07]} 14. Be5 {[%emt 00:01:54]} Bxf3 {[%clk 00:50:24]}
{[%emt 00:10:58]} 15. Rxf3 {[%clk 01:02:57]} {[%emt 00:01:44]} Ng4 {[%clk
00:47:11]} {[%emt 00:03:43]} 16. Nc3 {[%clk 00:44:06]} {[%emt 00:19:22]} Nxe5
{[%clk 00:33:04]} {[%emt 00:14:38]} 17. dxe5 {[%clk 00:44:28]} {[%emt
00:00:08]} Nd4 {[%clk 00:29:02]} {[%emt 00:04:32]} 18. Rf4 {[%clk 00:41:22]}
{[%emt 00:03:36]} Bc5 {[%clk 00:28:02]} {[%emt 00:01:30]} 19. Kh1 {[%clk
00:41:09]} {[%emt 00:00:43]} Ne6 {[%clk 00:27:24]} {[%emt 00:01:08]} 20. Rf3
{[%clk 00:36:37]} {[%emt 00:05:01]} Qxd3 {[%clk 00:27:05]} {[%emt 00:00:50]} 21.
Bxd3 {[%clk 00:35:15]} {[%emt 00:01:52]} Bd4 {[%clk 00:23:43]} {[%emt
00:03:52]} 22. Re1 {[%clk 00:28:18]} {[%emt 00:07:26]} O-O-O {[%clk 00:15:55]}
{[%emt 00:08:19]} 23. Bf5 {[%clk 00:26:13]} {[%emt 00:02:34]} Kd7 {[%clk
00:15:59]} {[%emt 00:00:27]} 24. Ne4 {[%clk 00:22:05]} {[%emt 00:04:38]} Ke7
{[%clk 00:16:21]} {[%emt 00:00:08]} 25. g3 {[%clk 00:19:19]} {[%emt 00:03:16]}
Bxe5 {[%clk 00:12:05]} {[%emt 00:04:46]} 26. Bxe6 {[%clk 00:18:01]} {[%emt
00:01:47]} fxe6 {[%clk 00:11:30]} {[%emt 00:01:05]} 27. Nc5 {[%clk 00:17:22]}
{[%emt 00:01:10]} Bf6 {[%clk 00:05:53]} {[%emt 00:06:07]} 28. Nxe6 {[%clk
00:15:34]} {[%emt 00:02:17]} Rd6 {[%clk 00:06:20]} {[%emt 00:00:04]} 29. Nc5+
{[%clk 00:11:05]} {[%emt 00:04:59]} Kf7 {[%clk 00:05:42]} {[%emt 00:01:08]} 30.
Nxb7 {[%clk 00:10:20]} {[%emt 00:01:14]} Rd2 {[%clk 00:06:06]} {[%emt
00:00:06]} 31. b4 {[%clk 00:09:37]} {[%emt 00:01:13]} Re8 {[%clk 00:04:15]}
{[%emt 00:02:20]} 32. Rxe8 {[%clk 00:08:01]} {[%emt 00:02:08]} Kxe8 {[%clk
00:04:37]} {[%emt 00:00:07]} 33. c5 {[%clk 00:07:30]} {[%emt 00:01:02]} Kd7
{[%clk 00:03:37]} {[%emt 00:01:29]} 34. Nd6 {[%clk 00:06:48]} {[%emt 00:01:13]}
Rd5 {[%clk 00:02:25]} {[%emt 00:01:39]} 35. Kg2 {[%clk 00:04:57]} {[%emt
00:02:24]} Rd2+ {[%clk 00:02:30]} {[%emt 00:00:24]} 36. Kh3 {[%clk 00:05:06]}
{[%emt 00:00:21]} Rd4 {[%clk 00:02:01]} {[%emt 00:00:59]} 37. Kg2 {[%clk
00:04:17]} {[%emt 00:01:20]} Rd2+ {[%clk 00:02:24]} {[%emt 00:00:07]} 38. Kh3
{[%clk 00:03:55]} {[%emt 00:00:51]} Rd4 {[%clk 00:02:46]} {[%emt 00:00:06]} 39.
Nf5 {[%clk 00:03:33]} {[%emt 00:00:55]} Re4 {[%clk 00:02:37]} {[%emt 00:00:38]}
40. Rd3+ {[%clk 00:02:51]} {[%emt 00:01:13]} Ke6 {[%clk 00:02:37]} {[%emt
00:00:29]} 41. Ne3 {[%clk 00:02:01]} {[%emt 00:01:20]} Rd4 {[%clk 00:22:46]}
{[%emt 00:10:22]} 42. Rb3 {[%clk 00:30:48]} {[%emt 00:01:43]} Kd7 {[%clk
00:18:24]} {[%emt 00:04:51]} 43. Nf5 {[%clk 00:28:18]} {[%emt 00:03:00]} Rd5
{[%clk 00:16:14]} {[%emt 00:02:39]} 44. Rf3 {[%clk 00:26:30]} {[%emt 00:02:18]}
Ke6 {[%clk 00:14:28]} {[%emt 00:02:17]} 45. Nd6 {[%clk 00:26:01]} {[%emt
00:01:00]} Kd7 {[%clk 00:14:28]} {[%emt 00:00:27]} 46. Kg2 {[%clk 00:25:45]}
{[%emt 00:00:47]} 1/2-1/2